fUSD/lending_fUSD_20251113
["ID","MTS","AMOUNT","RATE_DAILY","PERIOD"]
[393886151,1763071639265,-163.03237847,0.00051755,30]
[393886152,1763071639306,-500.0,0.00051755,30]
[393886153,1763071639513,-500.0,0.00051755,30]
[393886154,1763071639556,-500.0,0.00051755,30]
[393886155,1763071639597,-500.0,0.00051755,30]
[393886156,1763071639638,-500.0,0.00051755,30]
[393886157,1763071639678,-500.0,0.00051755,30]
[393886158,1763071639721,-500.0,0.00051755,30]
[393886159,1763071639761,-500.0,0.00051755,30]
[393886160,1763071639802,-500.0,0.00051755,30]
[393886161,1763071639846,-500.0,0.00051755,30]
[393886162,1763071639893,-335.68539719,0.00051755,30]
[393886163,1763071639945,-500.0,0.00051755,30]
[393886164,1763071640000,-500.0,0.00051755,30]
[393886165,1763071640047,-500.0,0.00051755,30]
[393886166,1763071640092,-500.0,0.00051755,30]
[393886167,1763071640137,-228.60159865,0.00051755,30]
[393886168,1763071640182,-500.0,0.00051755,30]
[393886169,1763071640225,-500.0,0.00051755,30]
[393886170,1763071640269,-500.0,0.00051755,30]
[393886171,1763071640313,-500.0,0.00051755,30]
[393886172,1763071640358,-500.0,0.00051755,30]
[393886173,1763071640399,-253.84070967,0.00051755,30]
[393886174,1763071640439,-151.67420441,0.00051755,30]
[393886175,1763071640479,-150.0,0.00051755,30]
[393886176,1763071640519,-150.0,0.00051755,30]
[393886177,1763071640558,-204.43135743,0.00051755,30]
[393886178,1763071640595,-500.0,0.00051755,30]
[393886179,1763071640632,-500.0,0.00051755,30]
[393886180,1763071640672,-500.0,0.00051755,30]
[393886181,1763071640715,-500.0,0.00051755,30]
[393886182,1763071640756,-500.0,0.00051755,30]
[393886183,1763071640799,-500.0,0.00051755,30]
[393886184,1763071640842,-500.0,0.00051755,30]
[393886185,1763071640888,-500.0,0.00051755,30]
[393886186,1763071640931,-500.0,0.00051755,30]
[393886187,1763071640973,-500.0,0.00051755,30]
[393886188,1763071641016,-565.74348878,0.00051755,30]
[393886189,1763071641057,-1542.0,0.00051755,30]
[393886190,1763071641099,-1542.0,0.00051755,30]
[393886191,1763071641148,-1542.0,0.00051755,30]
[393886192,1763071641194,-1542.0,0.00051755,30]
[393886193,1763071641239,-1542.0,0.00051755,30]
[393886194,1763071641286,-1542.0,0.00051755,30]
[393886195,1763071641330,-1542.0,0.00051755,30]
[393886196,1763071641378,-1542.0,0.00051755,30]
[393886197,1763071641420,-1542.0,0.00051755,30]
[393886198,1763071641461,-1542.0,0.00051755,30]
[393886199,1763071641502,-1542.0,0.00051755,30]
[393886200,1763071641544,-1542.0,0.00051755,30]
[393886201,1763071641587,-1542.0,0.00051755,30]
[393886202,1763071641633,-1542.0,0.00051755,30]
[393886203,1763071641678,-1542.0,0.00051755,30]
[393886204,1763071641721,-1542.0,0.00051755,30]
[393886205,1763071641764,-1542.0,0.00051755,30]
[393886206,1763071641808,-1542.0,0.00051755,30]
[393886207,1763071641853,-1542.0,0.00051755,30]
[393886208,1763071641898,-1542.0,0.00051755,30]
[393886209,1763071641944,-1542.0,0.00051755,30]
[393886210,1763071641990,-1542.0,0.00051755,30]
[393886211,1763071642034,-1542.0,0.00051755,30]
[393886212,1763071642078,-1558.19807269,0.00051755,30]
[393886213,1763071642119,-500.0,0.00051755,30]
[393886214,1763071642161,-500.0,0.00051755,30]
[393886215,1763071642203,-500.0,0.00051755,30]
[393886216,1763071642246,-500.0,0.00051755,30]
[393886217,1763071642290,-500.0,0.00051755,30]
[393886218,1763071642334,-500.0,0.00051755,30]
[393886219,1763071642378,-500.0,0.00051755,30]
[393886220,1763071642424,-500.0,0.00051755,30]
[393886221,1763071642471,-500.0,0.00051755,30]
[393886222,1763071642516,-500.0,0.00051755,30]
[393886223,1763071642562,-500.0,0.00051755,30]
[393886224,1763071642607,-500.0,0.00051755,30]
[393886225,1763071642654,-500.0,0.00051755,30]
[393886226,1763071642701,-500.0,0.00051755,30]
[393886227,1763071642759,-500.0,0.00051755,30]
[393886228,1763071642812,-500.0,0.00051755,30]
[393886229,1763071642861,-500.0,0.00051755,30]
[393886230,1763071642911,-500.0,0.00051755,30]
[393886231,1763071642963,-500.0,0.00051755,30]
[393886232,1763071643010,-500.0,0.00051755,30]
[393886233,1763071643060,-500.0,0.00051755,30]
[393886234,1763071643109,-500.0,0.00051755,30]
[393886235,1763071643159,-500.0,0.00051755,30]
[393886236,1763071643208,-500.0,0.00051755,30]
[393886237,1763071643257,-500.0,0.00051755,30]
[393886238,1763071643306,-174.65160094,0.00051755,30]
[393886239,1763071643354,-150.0,0.00051755,30]
[393886240,1763071643403,-150.0,0.00051755,30]
[393886241,1763071643452,-150.0,0.00051755,30]
[393886242,1763071643501,-158.38692488,0.00051755,30]
[393886243,1763071643548,-150.0,0.00051755,30]
[393886244,1763071643594,-150.0,0.00051755,30]
[393886245,1763071643642,-150.0,0.00051755,30]
[393886246,1763071643688,-150.0,0.00051755,30]
[393886247,1763071643732,-226.13658728,0.00051755,30]
[393886248,1763071643779,-646.0,0.00051755,30]
[393886249,1763071643829,-646.0,0.00051755,30]
[393886250,1763071643877,-646.0,0.00051755,30]
[393886251,1763071643927,-646.0,0.00051755,30]
[393886252,1763071643973,-646.0,0.00051755,30]
[393886253,1763071644018,-646.0,0.00051755,30]
[393886254,1763071644065,-646.0,0.00051755,30]
[393886255,1763071644116,-646.0,0.00051755,30]
[393886256,1763071644320,-646.0,0.00051755,30]
[393886257,1763071644369,-646.0,0.00051755,30]
[393886258,1763071644416,-646.0,0.00051755,30]
[393886259,1763071644462,-646.0,0.00051755,30]
[393886260,1763071644507,-646.0,0.00051755,30]
[393886261,1763071644554,-646.0,0.00051755,30]
[393886262,1763071644600,-646.0,0.00051755,30]
[393886263,1763071644645,-646.0,0.00051755,30]
[393886264,1763071644690,-646.0,0.00051755,30]
[393886265,1763071644735,-646.0,0.00051755,30]
[393886266,1763071644781,-646.0,0.00051755,30]
[393886267,1763071644831,-646.0,0.00051755,30]
[393886268,1763071644886,-646.0,0.00051755,30]
[393886269,1763071644937,-646.0,0.00051755,30]
[393886270,1763071644984,-646.0,0.00051755,30]
[393886271,1763071645032,-653.25201432,0.00051755,30]
[393886272,1763071645080,-500.0,0.00051788,120]
[393886273,1763071645126,-152.0,0.000519,120]
[393886274,1763071645174,-1094.0,0.00051924,30]
[393886275,1763071645218,-1000.0,0.00051999,120]
[393886276,1763071645264,-50000.0,0.00052,52]
[393886277,1763071645311,-254723.63986309,0.00052,120]
[393886278,1763071650003,-1658.22,0.000388,30]
[393886279,1763071650058,-1658.22,0.000396,30]
[393886280,1763071650149,-500.0,0.00049999,50]
[393886281,1763071650194,-500.0,0.00049999,50]
[393886282,1763071650236,-500.0,0.00049999,50]
[393886283,1763071650277,-500.0,0.00049999,50]
[393886284,1763071650318,-500.0,0.00049999,50]
[393886285,1763071650357,-500.0,0.00049999,50]
[393886286,1763071650397,-500.0,0.00049999,50]
[393886287,1763071650438,-500.0,0.00049999,50]
[393886288,1763071650478,-500.0,0.00049999,50]
[393886289,1763071650520,-500.0,0.00049999,50]
[393886290,1763071650560,-197.74868865,0.00049999,50]
[393886291,1763071650602,-150.0,0.00049999,50]
[393886292,1763071650645,-150.0,0.00049999,50]
[393886293,1763071650691,-150.0,0.00049999,50]
[393886294,1763071650735,-211.00622584,0.00049999,50]
[393886295,1763071650780,-500.0,0.00049999,50]
[393886296,1763071650826,-500.0,0.00049999,50]
[393886297,1763071650870,-500.0,0.00049999,50]
[393886298,1763071650917,-500.0,0.00049999,50]
[393886299,1763071650963,-500.0,0.00049999,50]
[393886300,1763071651021,-500.0,0.00049999,50]
[393886301,1763071651069,-500.0,0.00049999,50]
[393886302,1763071651113,-500.0,0.00049999,50]
[393886303,1763071651157,-153.62074529,0.00049999,50]
[393886304,1763071651200,-150.0,0.00049999,50]
[393886305,1763071651242,-150.0,0.00049999,50]
[393886306,1763071651288,-150.0,0.00049999,50]
[393886307,1763071651333,-150.0,0.00049999,50]
[393886308,1763071651376,-155.63392892,0.00049999,50]
[393886309,1763071651422,-500.0,0.00049999,50]
[393886310,1763071651470,-500.0,0.00049999,50]
[393886311,1763071651520,-500.0,0.00049999,50]
[393886312,1763071651569,-500.0,0.00049999,50]
[393886313,1763071651616,-422.00079718,0.00049999,50]
[393886314,1763071651666,-500.0,0.00049999,50]
[393886315,1763071651723,-500.0,0.00051755,30]
[393886316,1763071651772,-500.0,0.00051755,30]
[393886317,1763071651820,-500.0,0.00051755,30]
[393886318,1763071651867,-500.0,0.00051755,30]
[393886319,1763071651916,-500.0,0.00051755,30]
[393886320,1763071651964,-500.0,0.00051755,30]
[393886321,1763071652007,-500.0,0.00051755,30]
[393886322,1763071652052,-500.0,0.00051755,30]
[393886323,1763071652103,-500.0,0.00051755,30]
[393886324,1763071652151,-500.0,0.00051755,30]
[393886325,1763071652196,-500.0,0.00051755,30]
[393886326,1763071652240,-569.69804637,0.00051755,30]
[393886327,1763071652287,-500.0,0.00051755,30]
[393886328,1763071652333,-500.0,0.00051755,30]
[393886329,1763071652380,-530.57353987,0.00051755,30]
[393886330,1763071652426,-150.0,0.00051755,30]
[393886331,1763071652471,-150.0,0.00051755,30]
[393886332,1763071652516,-152.22350438,0.00051755,30]
[393886333,1763071652563,-745276.36013691,0.00052,120]
[393886334,1763071652608,-775.0784791,0.00052,120]
[393886335,1763071652654,-200.0,0.00052,120]
[393886336,1763071652697,-150.0,0.00052,120]
[393886337,1763071652741,-1382.29915476,0.00052,120]
[393886338,1763071652786,-154.0,0.00052,120]
[393886339,1763071652835,-150.0,0.00052,120]
[393886340,1763071652880,-600.0,0.00052055,30]
[393886341,1763071652933,-600.0,0.00052055,30]
[393886342,1763071652979,-600.0,0.00052055,30]
[393886343,1763071653025,-600.0,0.00052055,30]
[393886344,1763071653070,-600.0,0.00052055,30]
[393886345,1763071653117,-600.0,0.00052055,30]
[393886346,1763071653163,-600.0,0.00052055,30]
[393886347,1763071653213,-600.0,0.00052055,30]
[393886348,1763071653259,-600.0,0.00052055,30]
[393886349,1763071653301,-600.0,0.00052055,30]
[393886350,1763071653348,-600.0,0.00052055,30]
[393886351,1763071653391,-600.0,0.00052055,30]
[393886352,1763071653439,-600.0,0.00052055,30]
[393886353,1763071653482,-600.0,0.00052055,30]
[393886354,1763071653524,-1040.09,0.00052055,120]
[393886355,1763071653578,1658.22,0.000404,30]
[393886356,1763071653626,500.0,0.00049999,50]
[393886357,1763071653684,500.0,0.00049999,50]
[393886359,1763071653756,1658.22,0.000413,30]
[393886360,1763071653813,500.0,0.00049999,50]
[393886361,1763071653875,1658.22,0.000424,30]
[393886362,1763071653933,482.31456236,0.00049999,50]
[393886363,1763071654075,1658.22,0.00049,30]
[393886365,1763071654444,150.0,0.00049999,50]
[393886366,1763071654504,267.22218459,0.00049999,50]
[393886368,1763071654616,556.0,0.00049999,50]
[393886369,1763071654681,556.0,0.00049999,50]
[393886370,1763071654736,556.0,0.00051755,30]
[393886371,1763071654799,556.0,0.00049999,50]
[393886372,1763071654878,556.0,0.00051755,30]
[393886373,1763071654959,556.0,0.00049999,50]
[393886375,1763071655014,556.0,0.00051755,30]
[393886376,1763071655070,556.0,0.00049999,50]
[393886377,1763071655186,556.0,0.00051755,30]
[393886378,1763071655239,556.0,0.00049999,50]
[393886379,1763071655290,556.0,0.00051755,30]
[393886380,1763071655345,556.0,0.00049999,50]
[393886381,1763071655398,556.0,0.00051755,30]
[393886383,1763071655449,556.0,0.00049999,50]
[393886384,1763071655498,556.0,0.00049999,50]
[393886385,1763071655559,556.0,0.00049999,50]
[393886386,1763071655859,556.0,0.00051755,30]
[393886387,1763071655919,556.0,0.00051755,30]
[393886388,1763071655976,556.0,0.00049999,50]
[393886389,1763071656040,556.0,0.00049999,50]
[393886390,1763071656106,556.0,0.00049999,50]
[393886391,1763071656214,556.0,0.00049999,50]
[393886392,1763071656268,556.0,0.00049999,50]
[393886393,1763071656317,556.0,0.00051755,30]
[393886395,1763071681209,-239.94407044,0.00037462,30]
[393886396,1763071681370,-196.589292,0.0004085,120]
[393886397,1763071681517,-267.53979128,0.00046466,120]
[393886398,1763071681630,-500.0,0.00049999,50]
[393886399,1763071681721,-500.0,0.00049999,50]
[393886401,1763071681840,-500.0,0.00049999,50]
[393886402,1763071681939,-314.4734072,0.00049999,50]
[393886403,1763071682041,-500.0,0.00049999,50]
[393886404,1763071682116,-500.0,0.00049999,50]
[393886405,1763071682191,-312.5471274,0.00049999,50]
[393886406,1763071682273,-500.0,0.00049999,50]
[393886407,1763071682357,-500.0,0.00049999,50]
[393886408,1763071682431,-241.07170846,0.00049999,50]
[393886409,1763071682503,-155.09499083,0.00049999,50]
[393886410,1763071682573,-500.0,0.00049999,50]
[393886411,1763071682642,-500.0,0.00049999,50]
[393886412,1763071682705,-298.92754469,0.00049999,50]
[393886413,1763071682777,-150.0,0.00049999,50]
[393886414,1763071682850,-500.0,0.0005028,60]
[393886415,1763071682911,-500.0,0.00051376,60]
[393886416,1763071682978,-500.0,0.00051755,30]
[393886417,1763071683049,-500.0,0.00051755,30]
[393886418,1763071683109,-500.0,0.00051755,30]
[393886419,1763071683168,-500.0,0.00051755,30]
[393886420,1763071683226,-500.0,0.00051755,30]
[393886421,1763071683294,-500.0,0.00051755,30]
[393886422,1763071683351,-500.0,0.00051755,30]
[393886423,1763071683409,-500.0,0.00051755,30]
[393886424,1763071683465,-150.0,0.00051755,30]
[393886425,1763071683522,-150.0,0.00051755,30]
[393886426,1763071683578,-150.0,0.00051755,30]
[393886427,1763071683631,-164.93270786,0.00051755,30]
[393886428,1763071683686,-500.0,0.00051755,30]
[393886429,1763071683739,-500.0,0.00051755,30]
[393886430,1763071683797,-500.0,0.00051755,30]
[393886431,1763071683853,-500.0,0.00051755,30]
[393886432,1763071683907,-500.0,0.00051755,30]
[393886433,1763071683963,-318.3658966,0.00051755,30]
[393886434,1763071684022,-500.0,0.00051755,30]
[393886435,1763071684075,-678.37,0.00051805,120]
[393886436,1763071684128,-368.16960031,0.00051977,30]
[393886437,1763071684180,-3256.93072592,0.00051977,30]
[393886438,1763071684232,-500.0,0.00052062,120]
[393886439,1763071684282,-2144.0,0.00052191,120]
[393886440,1763071684331,-500.0,0.00052222,40]
[393886441,1763071684381,-1000000.0,0.0005225,120]
[393886442,1763071684434,-1000000.0,0.0005225,120]
[393886443,1763071684483,-500.0,0.00052336,120]
[393886444,1763071684533,-2000.0,0.000525,120]
[393886445,1763071684584,-1000000.0,0.000525,120]
[393886446,1763071684635,-1000000.0,0.000525,120]
[393886447,1763071684683,-150.0,0.00052507,120]
[393886448,1763071684731,-2000.0,0.0005253,63]
[393886449,1763071684779,-152.0,0.000526,120]
[393886450,1763071684985,-500.0,0.0005261,120]
[393886451,1763071685034,-1635.35896607,0.000527,120]
[393886452,1763071685084,-970005.68417094,0.0005275,120]
[393886453,1763071685489,188.05,0.00016978,2]
[393886454,1763071685589,188.05,0.00025468,120]
[393886455,1763071708583,-151.0,0.0004085,120]
[393886456,1763071708625,-151.0,0.0004085,120]
[393886457,1763071708669,-151.0,0.0004085,120]
[393886458,1763071708712,-151.0,0.0004085,120]
[393886459,1763071708756,-151.0,0.0004085,120]
[393886460,1763071708801,-151.0,0.0004085,120]
[393886461,1763071708846,-151.0,0.0004085,120]
[393886462,1763071708891,-151.0,0.0004085,120]
[393886463,1763071708937,-151.0,0.0004085,120]
[393886464,1763071708982,-151.0,0.0004085,120]
[393886465,1763071709028,-246.66186,0.0004085,120]
[393886466,1763071709069,-151.0,0.0004085,120]
[393886467,1763071709110,-151.0,0.0004085,120]
[393886468,1763071709161,-1000.0,0.00049413,30]
[393886469,1763071709201,-1000.0,0.00049477,30]
[393886470,1763071709243,-1000.0,0.00049532,30]
[393886471,1763071709283,-1000.0,0.00049564,30]
[393886472,1763071709324,-1000.0,0.00049734,30]
[393886473,1763071709365,-161.15095514,0.00049749,120]
[393886474,1763071709405,-1000.0,0.00049905,30]
[393886475,1763071709445,-1000.0,0.00049952,30]
[393886476,1763071709485,-1000.0,0.00049979,30]
[393886477,1763071709526,-1000.0,0.00050088,30]
[393886478,1763071709564,-1000.0,0.00050299,30]
[393886479,1763071709602,-1000.0,0.0005038,30]
[393886480,1763071709641,-1000.0,0.00050454,30]
[393886481,1763071709680,-1005.34273355,0.00050459,30]
[393886482,1763071709718,-943.06170799,0.000505,120]
[393886483,1763071709757,-1000.0,0.00050501,30]
[393886484,1763071709796,-1000.0,0.00050559,30]
[393886485,1763071709838,-1000.0,0.00050611,30]
[393886486,1763071709886,-994.65726645,0.00050645,30]
[393886487,1763071709934,-1000.0,0.00050963,30]
[393886488,1763071709977,-1000.0,0.00050974,30]
[393886489,1763071710020,-1000.0,0.00051014,30]
[393886490,1763071710061,-1000.0,0.00051051,30]
[393886491,1763071710103,-1000.0,0.00051074,30]
[393886492,1763071710144,-1000.0,0.00051134,30]
[393886493,1763071710332,-1000.0,0.00051209,30]
[393886494,1763071710376,-1000.0,0.00051273,30]
[393886495,1763071710420,-1000.0,0.00051284,30]
[393886496,1763071710464,-1000.0,0.00051296,30]
[393886497,1763071710507,-1000.0,0.00051325,30]
[393886498,1763071710550,-1000.0,0.00051358,30]
[393886499,1763071710594,-1000.0,0.00051585,30]
[393886500,1763071710640,-1000.0,0.00051669,30]
[393886501,1763071710684,-500.0,0.00051755,30]
[393886502,1763071710731,-500.0,0.00051755,30]
[393886503,1763071710773,-571.18282069,0.00051755,30]
[393886504,1763071710815,-1000.0,0.00051785,30]
[393886505,1763071710857,-1000.0,0.00051877,30]
[393886506,1763071710900,-1000.0,0.00051955,30]
[393886507,1763071710949,-1000.0,0.00051962,30]
[393886508,1763071710992,-1000.0,0.00051983,30]
[393886509,1763071711034,-583.0,0.00052749,120]
[393886510,1763071711081,-583.0,0.00052749,120]
[393886511,1763071711130,-583.0,0.00052749,120]
[393886512,1763071711177,-583.0,0.00052749,120]
[393886513,1763071711223,-583.0,0.00052749,120]
[393886514,1763071711266,-583.0,0.00052749,120]
[393886515,1763071711306,-583.0,0.00052749,120]
[393886516,1763071711346,-583.0,0.00052749,120]
[393886517,1763071711386,-583.0,0.00052749,120]
[393886518,1763071711426,-583.0,0.00052749,120]
[393886519,1763071711466,-583.0,0.00052749,120]
[393886520,1763071711506,-583.0,0.00052749,120]
[393886521,1763071711545,-583.0,0.00052749,120]
[393886522,1763071711586,-583.0,0.00052749,120]
[393886523,1763071711628,-583.0,0.00052749,120]
[393886524,1763071711670,-583.0,0.00052749,120]
[393886525,1763071711714,-29994.31582906,0.0005275,120]
[393886526,1763071711761,-500.0,0.00052884,120]
[393886527,1763071711803,-1000.0,0.00052999,120]
[393886528,1763071711846,-50000.0,0.00053,55]
[393886529,1763071711888,-1760.0,0.00053,120]
[393886530,1763071711934,-1000000.0,0.00053,120]
[393886531,1763071711979,-2921.09964325,0.00053,30]
[393886532,1763071712025,-429.15274325,0.00053,120]
[393886533,1763071712070,-154.0,0.00053,120]
[393886534,1763071712114,-150.0,0.00053,120]
[393886535,1763071712158,-500.0,0.00053158,120]
[393886536,1763071712201,-6218.04517413,0.00053177,120]
[393886537,1763071712247,-953.0,0.00053284,30]
[393886538,1763071712292,-381.59682897,0.0005329,120]
[393886539,1763071712339,-152.0,0.000533,120]
[393886540,1763071712386,-500.0,0.0005333,40]
[393886541,1763071712430,-500.0,0.00053432,120]
[393886542,1763071712483,-150.0,0.00053688,120]
[393886543,1763071712531,-500.0,0.00053705,120]
[393886544,1763071712577,-953.0,0.00053833,30]
[393886545,1763071712623,-2956.11,0.000539,120]
[393886546,1763071712671,-500.0,0.00053979,120]
[393886547,1763071712716,-2463.70384501,0.00053998,31]
[393886548,1763071712761,-1000.0,0.00053999,120]
[393886549,1763071712808,-50000.0,0.00054,55]
[393886550,1763071712852,-1000.0,0.00054,120]
[393886551,1763071712900,-1000000.0,0.00054,120]
[393886552,1763071712951,-1444.62419749,0.00054,120]
[393886553,1763071712995,-1964.20029799,0.00054,120]
[393886554,1763071713040,-319.39155117,0.00054,120]
[393886555,1763071713082,-200.0,0.00054,120]
[393886556,1763071713122,-150.0,0.00054,120]
[393886557,1763071713166,-152.0,0.00054,120]
[393886558,1763071713217,-154.0,0.00054,120]
[393886559,1763071713264,-150.0,0.00054,120]
[393886560,1763071713310,-4164.26135802,0.00054,120]
[393886561,1763071713357,-2843.87340427,0.00054,120]
[393886562,1763071713404,-150.0,0.00054119,120]
[393886563,1763071713455,-150.0,0.00054133,120]
[393886564,1763071713501,-500.0,0.00054253,120]
[393886565,1763071713548,-906.0,0.00054354,120]
[393886566,1763071713594,-953.0,0.00054383,30]
[393886567,1763071713640,-526.92031555,0.0005439,120]
[393886568,1763071713683,-2000.0,0.0005444,49]
[393886569,1763071713731,-1000.0,0.00054443,120]
[393886570,1763071713779,-384285.1507,0.00054444,30]
[393886571,1763071713825,-2000.0,0.000545,120]
[393886572,1763071713870,-500.0,0.00054527,120]
[393886573,1763071713916,-150.0,0.00054578,120]
[393886574,1763071713964,-1094.0,0.00054657,30]
[393886575,1763071714007,-1000.0,0.00054793,120]
[393886576,1763071714050,-1000.0,0.00054793,120]
[393886577,1763071714273,-1000.0,0.00054793,120]
[393886578,1763071714319,-1000.0,0.00054793,120]
[393886579,1763071714363,-1000.0,0.00054793,120]
[393886580,1763071714405,-1000.0,0.00054793,120]
[393886581,1763071714455,-1000.0,0.00054793,120]
[393886582,1763071714501,-1000.0,0.00054793,120]
[393886583,1763071714544,-1000.0,0.00054793,120]
[393886584,1763071714586,-1000.0,0.00054793,120]
[393886585,1763071714629,-1000.0,0.00054793,120]
[393886586,1763071714672,-1000.0,0.00054793,120]
[393886587,1763071714717,-1000.0,0.00054793,120]
[393886588,1763071714764,-1000.0,0.00054793,120]
[393886589,1763071714816,-1000.0,0.00054793,120]
[393886590,1763071714863,-627.30290793,0.00054793,120]
[393886591,1763071714921,-776.67252039,0.00054794,30]
[393886592,1763071714979,-500.0,0.00054794,120]
[393886593,1763071715032,-500.0,0.00054794,120]
[393886594,1763071715082,-500.0,0.00054794,120]
[393886595,1763071715128,-502.364408,0.00054794,120]
[393886596,1763071715174,-192.550528,0.00054794,120]
[393886597,1763071715219,-185.141951,0.00054794,120]
[393886598,1763071715263,-152.156952,0.00054794,120]
[393886599,1763071715306,-311.827933,0.00054794,120]
[393886600,1763071715348,-500.0,0.00054794,120]
[393886601,1763071715392,-500.0,0.00054794,120]
[393886602,1763071715433,-500.0,0.00054794,120]
[393886603,1763071715477,-500.0,0.00054794,120]
[393886604,1763071715519,-500.0,0.00054794,120]
[393886605,1763071715560,-500.0,0.00054794,120]
[393886606,1763071715602,-500.0,0.00054794,120]
[393886607,1763071715650,-500.0,0.00054794,120]
[393886608,1763071715692,-500.0,0.00054794,120]
[393886609,1763071715736,-500.0,0.00054794,120]
[393886610,1763071715779,-500.0,0.00054794,120]
[393886611,1763071715823,-500.0,0.00054794,120]
[393886612,1763071715869,-500.0,0.00054794,120]
[393886613,1763071715918,-500.0,0.00054794,120]
[393886614,1763071715962,-203.37398758,0.00054794,120]
[393886615,1763071716006,-502.03610367,0.00054794,120]
[393886616,1763071716051,-500.0,0.00054794,120]
[393886617,1763071716095,-500.0,0.00054794,120]
[393886618,1763071716167,-522.54385129,0.00054794,120]
[393886619,1763071716228,-500.0,0.00054794,120]
[393886620,1763071716303,-500.0,0.00054794,120]
[393886621,1763071716369,-500.0,0.00054794,120]
[393886622,1763071716429,-511.24595006,0.00054794,120]
[393886623,1763071716491,-500.0,0.00054794,120]
[393886624,1763071716552,-500.0,0.00054794,120]
[393886625,1763071716619,-500.0,0.00054794,120]
[393886626,1763071716682,-165.228799,0.00054794,120]
[393886627,1763071716738,-500.0,0.00054794,120]
[393886628,1763071716805,-500.0,0.00054794,120]
[393886629,1763071716863,-400.0,0.00054794,120]
[393886630,1763071716926,-500.0,0.00054794,120]
[393886631,1763071716995,-500.0,0.00054794,120]
[393886632,1763071717054,-500.0,0.00054794,120]
[393886633,1763071717114,-500.0,0.00054794,120]
[393886634,1763071717167,-500.0,0.00054794,120]
[393886635,1763071717218,-500.0,0.00054794,120]
[393886636,1763071717270,-500.0,0.00054794,120]
[393886637,1763071717321,-500.0,0.00054794,120]
[393886638,1763071717376,-500.0,0.00054794,120]
[393886639,1763071717430,-500.0,0.00054794,120]
[393886640,1763071717489,-394.12178045,0.00054794,120]
[393886641,1763071717545,-500.0,0.00054794,120]
[393886642,1763071717596,-508.08124624,0.00054794,120]
[393886643,1763071717649,-248.65900854,0.00054794,120]
[393886644,1763071717706,-500.0,0.00054794,120]
[393886645,1763071717761,-500.0,0.00054794,120]
[393886646,1763071717821,-500.0,0.00054794,120]
[393886647,1763071717874,-500.0,0.00054794,120]
[393886648,1763071717926,-161.465325,0.00054794,120]
[393886649,1763071717981,-175.184751,0.00054794,120]
[393886650,1763071718034,-500.0,0.00054794,120]
[393886651,1763071718085,-500.0,0.00054794,120]
[393886652,1763071718140,-156.603685,0.00054794,120]
[393886653,1763071718196,-279.80210213,0.00054794,120]
[393886654,1763071718271,-165.228799,0.00054794,120]
[393886655,1763071718338,-500.0,0.00054794,120]
[393886656,1763071718387,-500.0,0.00054794,120]
[393886657,1763071718440,-429.03361278,0.00054794,120]